Workbook

Sheet 1
A1: Школа | B1: МБОУ Лицей №188 города Казани | E1: Отд./корп | I1: День | J1: 18.03.2023
A3: Прием пищи | B3: Раздел | C3: № рец. | D3: Блюдо | E3: Выход, г | F3: Цена | G3: Калорийность | H3: Белки | I3: Жиры | J3: Углеводы
A4: Завтрак | B4: ='[1]27.02-4.03,13-18.03,27.03-1.04'!B44 -> гор.блюдо | C4: ='[1]27.02-4.03,13-18.03,27.03-1.04'!C44 -> № 243/2015 г | D4: ='[1]27.02-4.03,13-18.03,27.03-1.04'!D44 -> Сосиски отварные | E4: ='[1]27.02-4.03,13-18.03,27.03-1.04'!E44 -> 100 | G4: ='[1]27.02-4.03,13-18.03,27.03-1.04'!G44 -> 144.00 | H4: ='[1]27.02-4.03,13-18.03,27.03-1.04'!H44 -> 9.40 | I4: ='[1]27.02-4.03,13-18.03,27.03-1.04'!I44 -> 11.00 | J4: ='[1]27.02-4.03,13-18.03,27.03-1.04'!J44 -> 1.80
B5: ='[1]27.02-4.03,13-18.03,27.03-1.04'!B45 -> гор.блюдо | C5: ='[1]27.02-4.03,13-18.03,27.03-1.04'!C45 -> № 202/2015 г | D5: ='[1]27.02-4.03,13-18.03,27.03-1.04'!D45 -> Макаронные изделия отварные | E5: ='[1]27.02-4.03,13-18.03,27.03-1.04'!E45 -> 150 | G5: ='[1]27.02-4.03,13-18.03,27.03-1.04'!G45 -> 207.00 | H5: ='[1]27.02-4.03,13-18.03,27.03-1.04'!H45 -> 5.64 | I5: ='[1]27.02-4.03,13-18.03,27.03-1.04'!I45 -> 4.46 | J5: ='[1]27.02-4.03,13-18.03,27.03-1.04'!J45 -> 35.94
B6: ='[1]27.02-4.03,13-18.03,27.03-1.04'!B46 -> гор.напиток | C6: ='[1]27.02-4.03,13-18.03,27.03-1.04'!C46 -> ТТК 2021 г | D6: ='[1]27.02-4.03,13-18.03,27.03-1.04'!D46 -> Чай с сахаром | E6: ='[1]27.02-4.03,13-18.03,27.03-1.04'!E46 -> 187 | G6: ='[1]27.02-4.03,13-18.03,27.03-1.04'!G46 -> 29.00 | H6: ='[1]27.02-4.03,13-18.03,27.03-1.04'!H46 -> 0.02 | I6: ='[1]27.02-4.03,13-18.03,27.03-1.04'!I46 -> 0.01 | J6: ='[1]27.02-4.03,13-18.03,27.03-1.04'!J46 -> 7.19
B7: ='[1]27.02-4.03,13-18.03,27.03-1.04'!B47 -> хлеб | D7: ='[1]27.02-4.03,13-18.03,27.03-1.04'!D47 -> Хлеб ржано-пшеничный | E7: ='[1]27.02-4.03,13-18.03,27.03-1.04'!E47 -> 15 | G7: ='[1]27.02-4.03,13-18.03,27.03-1.04'!G47 -> 35.00 | H7: ='[1]27.02-4.03,13-18.03,27.03-1.04'!H47 -> 1.14 | I7: ='[1]27.02-4.03,13-18.03,27.03-1.04'!I47 -> 0.12 | J7: ='[1]27.02-4.03,13-18.03,27.03-1.04'!J47 -> 7.38
B8: ='[1]27.02-4.03,13-18.03,27.03-1.04'!B48 -> хлеб | D8: ='[1]27.02-4.03,13-18.03,27.03-1.04'!D48 -> Хлеб пшеничный | E8: ='[1]27.02-4.03,13-18.03,27.03-1.04'!E48 -> 15 | G8: ='[1]27.02-4.03,13-18.03,27.03-1.04'!G48 -> 33.00 | H8: ='[1]27.02-4.03,13-18.03,27.03-1.04'!H48 -> 0.75 | I8: ='[1]27.02-4.03,13-18.03,27.03-1.04'!I48 -> 0.15 | J8: ='[1]27.02-4.03,13-18.03,27.03-1.04'!J48 -> 6.75
B9: ='[1]27.02-4.03,13-18.03,27.03-1.04'!B49 -> фрукты | C9: ='[1]27.02-4.03,13-18.03,27.03-1.04'!C49 -> № 338/2015 г | D9: ='[1]27.02-4.03,13-18.03,27.03-1.04'!D49 -> Плоды свежие (яблоки) | E9: ='[1]27.02-4.03,13-18.03,27.03-1.04'!E49 -> 100 | G9: ='[1]27.02-4.03,13-18.03,27.03-1.04'!G49 -> 47.00 | H9: ='[1]27.02-4.03,13-18.03,27.03-1.04'!H49 -> 0.40 | I9: ='[1]27.02-4.03,13-18.03,27.03-1.04'!I49 -> 0.40 | J9: ='[1]27.02-4.03,13-18.03,27.03-1.04'!J49 -> 9.80
A12: ИТОГО | E12: ='[1]27.02-4.03,13-18.03,27.03-1.04'!E51 -> 567 | F12: ='[1]27.02-4.03,13-18.03,27.03-1.04'!F51 -> 62.10 | G12: ='[1]27.02-4.03,13-18.03,27.03-1.04'!G51 -> 495 | H12: ='[1]27.02-4.03,13-18.03,27.03-1.04'!H51 -> 17.35 | I12: ='[1]27.02-4.03,13-18.03,27.03-1.04'!I51 -> 16.14 | J12: ='[1]27.02-4.03,13-18.03,27.03-1.04'!J51 -> 68.86
